[Event "Paris FIDE GP"]
[Site "Elancourt"]
[Date "2013.09.24"]
[Round "3"]
[White "Ivanchuk, Vassily"]
[Black "Wang, Hao"]
[Result "1-0"]
[ECO "C07"]
[WhiteElo "2731"]
[BlackElo "2747"]
[Annotator "ChessBase Website"]
[PlyCount "119"]
[EventDate "2013.09.22"]
[EventType "tourn"]
[EventRounds "11"]
[EventCountry "FRA"]
[EventCategory "20"]
[SourceTitle "CBM 157"]
[Source "ChessBase"]
[SourceDate "2013.11.12"]
[SourceVersion "1"]
[SourceVersionDate "2013.11.12"]
[SourceQuality "1"]
[TimeControl "40/7200:20/3600:900+30"]
[WhiteClock "2:00:00"]
[BlackClock "2:00:00"]

1. e4 {[%emt 0:00:06]} e6 {[%emt 0:05:02]} 2. d4 {[%emt 0:00:11]} d5 {[%emt 0:
00:03]} 3. Nd2 {[%emt 0:00:04]} c5 {[%emt 0:00:06]} 4. Ngf3 {[%emt 0:00:16]}
cxd4 {[%emt 0:00:44]} 5. exd5 {[%emt 0:00:10]} Qxd5 {[%emt 0:00:06]} 6. Bc4 {
[%emt 0:00:04]} Qd6 {[%emt 0:00:05]} 7. O-O {[%emt 0:00:04]} Nf6 {[%emt 0:00:
04]} 8. Nb3 {[%emt 0:00:04]} Nc6 {[%emt 0:00:04]} 9. Nbxd4 {[%emt 0:00:06]}
Nxd4 {[%emt 0:00:05]} 10. Nxd4 {[%emt 0:00:02]} a6 {[%emt 0:00:07]} 11. Re1 {
[%emt 0:00:03]} Qc7 {[%emt 0:00:06]} 12. Bf1 {[%emt 0:00:05]} Bc5 {[%emt 0:05:
41]} 13. c3 $146 {[%emt 0:22:51]} (13. Bg5 O-O 14. Bxf6 gxf6 15. Qg4+ Kh8 16.
Qh4 Be7 17. Re3 f5 18. Qh5 Bc5 19. Qh6 f6 20. Nxe6 Bxe6 21. Rxe6 Bd4 22. Rae1
Be5 23. Bd3 f4 24. g3 Rad8 25. Qh4 Rd4 26. R1xe5 Rxd3 27. Re1 Rdd8 28. Re7 Qxc2
29. Qxf4 b5 30. Ra7 Rd1 31. Rxh7+ {1-0 (31) Zhou,Y (2469)-Knott,S (2318)
Torquay 2013}) 13... O-O {[%emt 0:01:03]} 14. Bg5 {[%emt 0:00:11]} Nd5 {
[%emt 0:12:32]} 15. Bc4 {[%emt 0:11:34]} Nf4 {[%emt 0:14:10]} 16. Bb3 {[%emt 0:
13:29]} h6 {[%emt 0:02:15]} 17. Bxf4 {[%emt 0:03:48]} Qxf4 {[%emt 0:00:10]} 18.
Qf3 {[%emt 0:00:03]} Qxf3 {[%emt 0:05:17]} 19. Nxf3 {[%emt 0:00:09]} Rd8 {
[%emt 0:01:26]} 20. Bc2 {[%emt 0:04:18]} Kf8 {[%emt 0:08:38]} 21. Rad1 {
[%emt 0:00:27]} Bd7 {[%emt 0:03:32]} 22. Ne5 {[%emt 0:03:47]} Be8 {[%emt 0:01:
55]} 23. h4 {[%emt 0:00:16]} Ke7 {[%emt 0:01:34]} 24. g3 {[%emt 0:00:23]} Bd6 {
[%emt 0:04:38]} 25. Nc4 {[%emt 0:02:17]} Bc7 {[%emt 0:00:18]} 26. Be4 {[%emt 0:
00:04]} Rxd1 {[%emt 0:01:24]} 27. Rxd1 {[%emt 0:00:03]} Rb8 {[%emt 0:00:05]}
28. a3 {[%emt 0:00:20]} b5 {[%emt 0:08:24]} 29. Ne3 {[%emt 0:00:15]} a5 {
[%emt 0:00:25]} 30. Nc2 {[%emt 0:00:28]} f5 {[%emt 0:02:49]} 31. Bf3 {[%emt 0:
00:36]} Kf6 {[%emt 0:02:05]} 32. Kf1 {[%emt 0:00:20]} Bb6 {[%emt 0:03:38]} 33.
Ke1 {[%emt 0:02:16]} Bc5 {[%emt 0:03:39]} 34. Rd2 {[%emt 0:00:13]} Rc8 {
[%emt 0:01:32]} 35. Bb7 {[%emt 0:02:17]} Rc7 {[%emt 0:03:33]} 36. Bf3 {[%emt 0:
00:22]} Rc8 {[%emt 0:05:46]} 37. Bb7 {[%emt 0:00:07]} Rb8 {[%emt 0:00:59]} 38.
Bf3 {[%emt 0:00:31]} g6 {[%emt 0:00:14]} 39. Ke2 {[%emt 0:00:57]} e5 {[%emt 0:
02:44]} 40. Bd5 {[%emt 0:00:00]} g5 {[%emt 0:00:00]} 41. hxg5+ {[%emt 0:00:34]}
hxg5 {[%emt 0:05:04]} 42. b4 {[%emt 0:07:15]} axb4 {[%emt 0:02:50]} 43. axb4 {
[%emt 0:00:06]} Bb6 {[%emt 0:00:11]} 44. Bc6 {[%emt 0:00:08]} Bh5+ {[%emt 0:04:
44] Wang Hao was able to obtain a slight edge with black straight out of the
opening as his pair of bishops was the only factor that mattered in the
position. He keps expanding and pushing for the win, but a clever resource by
Ivanchuk on move 44 allowed him to equalize the position. Wang Hao should've
looked for a way to secure the draw, but instead he kept pushing forward
without regard for his opponent's threats. Ivanchuk picked up a pawn and a
further blunder soon afterwards cost the Chinese player a full piece, after
which the game was over.} 45. Ke1 {[%emt 0:03:07]} f4 {[%emt 0:23:14]} 46. Na3
{[%emt 1:02:15]} Rc8 $6 {[%emt 0:01:16]} (46... e4 $142 47. Rd6+ Ke7 48. Nxb5
e3 49. fxe3 Bxe3 $132 {Ivanchuk}) 47. Rd6+ {[%emt 0:00:58]} Ke7 {[%emt 0:00:03]
} 48. Nxb5 {[%emt 0:03:00]} fxg3 {[%emt 0:03:05]} 49. fxg3 {[%emt 0:00:10]} Rf8
{[%emt 0:00:04]} 50. Rd7+ {[%emt 0:09:19]} Ke6 {[%emt 0:00:05]} 51. Rd2 {
[%emt 0:00:20]} Be3 {[%emt 0:03:31]} 52. Rd6+ {[%emt 0:13:38]} Kf5 {[%emt 0:01:
01]} 53. Bd7+ {[%emt 0:02:13]} Ke4 {[%emt 0:00:03]} 54. Bc6+ {[%emt 0:00:03]}
Kf5 {[%emt 0:00:03]} 55. Rh6 {[%emt 0:00:04]} Kg4 {[%emt 0:04:12]} 56. Bd7+ {
[%emt 0:01:48]} Kf3 {[%emt 0:00:15]} 57. Rxh5 {[%emt 0:00:13]} e4 {[%emt 0:00:
21]} 58. g4 {[%emt 0:00:59]} Bf2+ 59. Kf1 Kg3 {[%emt 0:01:19]} 60. Nd6 {
[%emt 0:00:00]} 1-0

[Event "EU-ch 12th"]
[Site "Aix les Bains"]
[Date "2011.03.30"]
[Round "8"]
[White "Azarov, Sergei Nikolaevich"]
[Black "Dubov, Daniil"]
[Result "1-0"]
[ECO "C07"]
[WhiteElo "2615"]
[BlackElo "2489"]
[Annotator "Marchand,A/Primel,D"]
[PlyCount "119"]
[EventDate "2011.03.22"]
[EventType "swiss"]
[EventRounds "11"]
[EventCountry "FRA"]
[SourceTitle "CBM 142 Extra"]
[Source "ChessBase"]
[SourceDate "2011.06.27"]
[SourceVersion "1"]
[SourceVersionDate "2011.06.27"]
[SourceQuality "1"]
[TimeControl "40/5400+30:1800+30"]

1. e4 e6 2. d4 d5 3. Nd2 c5 4. exd5 (4. Ngf3 Nc6 5. Bb5 cxd4 (5... dxe4 6. Nxe4
Bd7 7. Bg5 Qa5+ 8. Nc3 cxd4 (8... a6 9. Bxc6 Bxc6 10. d5 Bxd5 11. O-O (11. Ne5
$5 Qc7 12. Qe2 Bxg2 13. Rg1 Bd6 14. Nxf7 $5 $13)) 9. Nxd4 Be7 10. Bxc6 (10. Qd2
Nf6 11. O-O-O) 10... bxc6 (10... Bxc6 11. Nxc6 Qxg5 12. Qf3 $36) 11. Bxe7 Nxe7
12. O-O O-O 13. Nb3 $14) 6. O-O (6. Nxd4 Bd7 7. Nxc6 Bxc6 (7... bxc6) 8. Bxc6+
bxc6 9. c4 dxe4 10. Nxe4 (10. Qa4) 10... Qxd1+ 11. Kxd1 Nf6 12. Nxf6+ gxf6 13.
Be3 Rg8 14. g3 $14)) 4... Qxd5 (4... exd5 {L'alternative est plus
positionnelle et rentre souvent dans des finales avec un avantage minime mais
durable.} 5. Bb5+ Bd7 6. Qe2+ Be7 (6... Qe7 7. Bxd7+ Nxd7 8. dxc5 Nxc5 9. Nb3 (
9. Ndf3) 9... Qxe2+ 10. Nxe2 Nxb3 11. axb3 Bc5 12. Nc3 (12. Bd2 Ne7 13. Nf4 O-O
{Karpov,A (2725)-Kortschnoj,V (2665) World Championship 29th 1978 (16) 1/2})
12... O-O-O $6 {Hort,V-Ivkov,B Hoogovens Wijk aan Zee 1970 (12) 1-0} (12... Ne7
13. Na4 Bd6 14. Be3 $14)) 7. dxc5 Nf6 8. Nb3 O-O 9. Be3 (9. Nf3) 9... Re8 10.
Nf3 a6 11. Bd3 Ba4 12. Nfd4 Nbd7 13. O-O-O Nxc5 14. Nf5 $13 {Rublevsky,S (2662)
-Bareev,E (2709) Fujitsu Siemens Masters rapid 2000 (13) 1/2}) 5. Ngf3 cxd4 6.
Bc4 Qd6 (6... Qd7 $5 {Une idée récente} 7. O-O Nc6 8. Nb3 Nf6 9. Nbxd4 Bc5 10.
c3 O-O 11. Bg5 Ne4 {Bogut,Z (2441)-Tratar,M (2502) CRO-chT1B 21st 2012 (3.4) 1/
2}) (6... Qd8 7. O-O Nf6 8. Nb3 Nc6 9. Qe2) 7. O-O (7. Qe2 $5) 7... Nf6 8. Nb3
Nc6 9. Nbxd4 Nxd4 10. Nxd4 a6 (10... Bd7) 11. Re1 {[%cal Gd4f5,Ge1e8]} (11. Bb3
Qc7 12. Re1) 11... Qc7 12. Qe2 (12. Bb3 Bd6 13. Nf5 Bxh2+ 14. Kh1 O-O 15. Nxg7
Rd8 $11) 12... Bd6 13. Bg5 (13. Nf5 $5 $146 {Le thème Nf5 est classique dans
cette variante mais personne ne semble l'avoir joué selon les bases.  Les
modules ne le proposent pas d'ailleurs probablement а cause de l'effet
d'horizon.} Bxh2+ 14. Kh1 O-O $8 (14... Bd6 $4 15. Nxg7+ Kf8 (15... Ke7 16.
Nf5+) 16. Bh6) 15. Nxg7 $1 {[%csl Rg8] L'idée sous-jacente а Nf5} Kxg7 16. Qe3
{[%cal Ge3h6,Gh6h2]} Ng8 $8 (16... Qxc4 $4 17. Qh6+ Kg8 18. Qg5+ Kh8 19. Qxf6+)
17. Qd4+ {[%cal Gd4g7,Gd4c4]} f6 (17... e5 18. Qc3 {[%cal Gg2g3]} Be6 19. Kxh2
Bxc4 20. b3) 18. g3 {Les Blancs auront la paire de B pour un P} Bxg3 19. fxg3 {
[%csl Rg7][%cal Ge1e4,Ge4g4]} (19. Rg1 Qc6+) (19. Qg4+ Kh8 20. fxg3 e5) 19...
Qc6+ (19... Kh8 20. Bf4 $1 e5 21. Rxe5 {[%csl Gf4][%cal Gd4h8]}) (19... e5 20.
Qh4 Kh8 21. Bd3 Be6 {Les compensations des Blancs sont un peu insuffisantes}) (
19... Qxg3 20. Rg1) 20. Kg1 (20. Kh2 e5 21. Qh4) 20... e5 21. Qh4 Bf5 {[%cal
Gf5g6]} 22. Be3 Rad8 23. Re2 {[%csl Rh7][%cal Ge2h2]} (23. Bb3 Kh8 {Le
sacrifice doit être jouable car les Noirs doivent trouver les meilleurs coups
devant l'échiquier et la paire de B doit donner des compensations raisonnables
sans plus.})) 13... O-O (13... Bxh2+ $6 14. Kh1 Bd6 15. Bxe6 $1 {[%csl Re8]})
14. Nf3 (14. Bxf6 gxf6 15. Qg4+ Kh8 16. Qh4 {[%cal Gh4h2,Gh4f6]} Be7 (16...
Qxc4 17. Qxf6+ Kg8 18. Re4) 17. Re3 $36 {[%csl Rh7][%cal Ge3h3]}) 14... b5 15.
Bd3 Bb7 16. Bxf6 gxf6 17. Be4 Rfd8 $146 ({RR} 17... b4 18. Rad1 Rad8 19. h3 Bc8
20. Bd3 a5 21. Qe4 f5 22. Qh4 f6 23. Bc4 Kh8 24. b3 e5 25. Qh5 Qg7 26. Nh4 Bc5
27. Bf7 Qg3 28. Kh1 Bxf2 29. Nxf5 Rxd1 30. Nxg3 Rxe1+ 31. Kh2 Bg1+ 32. Kh1 {
Boskovic,D (2354)-Jeremic,V (2484)/Obrenovac 2002/0-1 (36)}) 18. Rad1 (18. Bxb7
Qxb7 19. Rad1 {[%cal Gd1d4,Gd4g4]}) 18... Rac8 19. c3 (19. Bd3 Bxf3 20. Qxf3
Bxh2+ 21. Kh1 Be5 22. Qe4 Bxb2 23. Qxh7+ Kf8 24. Rxe6 fxe6 25. Qh8+ Ke7 26.
Qg7+ Kd6 27. Be4+ (27. Bxb5+ Kc5 {[%csl Rd1]}) 27... Kc5 28. Qxc7+ Rxc7 29.
Rxd8 $13 {[%csl Rc2]}) 19... Bxe4 20. Qxe4 f5 (20... Qc4 21. Rd4 Qc5 (21...
Qxa2 $2 22. Qh4 {[%cal Gd4g4]}) 22. Qh4 {[%cal Gd4g4,Gh4f6]}) 21. Qh4 $14 {
[%cal Gf3g5]} Bf8 22. a4 Qe7 23. Rxd8 Qxd8 24. Qh5 Qf6 25. axb5 axb5 26. Ne5 {
[%csl Rf7]} Bg7 27. h3 {A part éviter un mat du couloir, l'idée de ce coup
m'échappe et il prive les Blancs de la possibilité de jouer Re3h3 ou Rg3} (27.
f4 $142 $5 {[%csl Rf6,Rg7,Rg8][%cal Ge1e3,Ge3g3,Ge3h3]}) 27... Qe7 28. Qf3 Qc7
29. Nd3 $8 {[%csl Gb4]} Qd6 30. Ra1 (30. Nb4) 30... Rd8 31. Ra8 Rxa8 32. Qxa8+
Bf8 33. Qf3 Qc7 34. g3 Bd6 {(=)} 35. Qe3 {Les Blancs sont un peu mieux et ils
refusent а juste titre la proposition.} Qd8 36. h4 $1 Bc7 37. Kg2 h6 (37...
Qd5+ 38. Qf3) 38. Qf3 (38. Nb4 Kg7 (38... f4 $5)) 38... Kg7 39. b3 Qd7 (39...
Qd6) 40. Nc5 Qd6 41. b4 Bd8 (41... Bb6 $11) 42. Nb7 Qc7 43. Nxd8 (43. c4 bxc4)
43... Qxd8 44. c4 $1 {[%csl Gb4]} bxc4 45. Qc3+ e5 (45... f6 46. Qxc4) 46. Qxc4
Qd2 $6 (46... Qa8+ 47. Kh2 (47. Kg1 Qa1+) 47... Qf3 48. Qc5 $14 {[%cal Gc5e5,
Gc5f2,Gb4b5]}) 47. b5 e4 48. Qc5 (48. b6 {Plus rapide} e3 49. Qf4 $18) 48... e3
49. Qe5+ Kh7 50. Qxf5+ Kg7 $2 (50... Kg8 51. b6 e2 52. b7 Qb4 53. Qc8+ Kg7 54.
b8=Q Qxb8 55. Qxb8 e1=Q) 51. Qe5+ Kg8 52. Qxe3 Qd5+ 53. Kh2 Qxb5 54. Qxh6 Qe2
55. Qg5+ Kh8 56. Qf6+ Kg8 57. Kg2 Qe4+ 58. Qf3 Qc4 59. Qh5 Qc6+ 60. Kh2 1-0

[Event "Metz op 31th"]
[Site "Metz"]
[Date "2013.04.20"]
[Round "1"]
[White "Gharamian, Tigran"]
[Black "Crut, Aurelien"]
[Result "1/2-1/2"]
[ECO "C07"]
[WhiteElo "2663"]
[BlackElo "2367"]
[Annotator "Metz Alekhine/Primel,D"]
[PlyCount "85"]
[EventDate "2013.04.20"]
[EventType "swiss"]
[EventRounds "9"]
[EventCountry "FRA"]
[SourceTitle "EXT 2016"]
[Source "ChessBase"]
[SourceDate "2015.10.08"]
[SourceVersion "1"]
[SourceVersionDate "2015.10.08"]
[SourceQuality "1"]
[TimeControl "40/5400:1800+30"]
[WhiteClock "1:30:00"]
[BlackClock "1:30:00"]

1. e4 e6 2. d4 d5 3. Nd2 a6 4. Ngf3 c5 5. exd5 (5. dxc5 Bxc5 6. Bd3 Nc6 7. c3
Nf6 8. Qe2 Be7 (8... Qc7 9. O-O O-O $132) 9. O-O Qc7 10. Re1 b5 11. a4 b4 12.
c4 dxe4 13. Nxe4 h6 {Rozentalis,E (2622)-Naumkin,I (2445) Padova op-A 16th
2013 (6) 1-0} (13... Ng4 14. h3 Nd4 15. Qd1 Nxf3+ 16. Qxf3 Qh2+ 17. Kf1 Ne5 18.
Nd6+ Bxd6 19. Qxa8 O-O $44 {[%cal Gc8b7,Gb7g2]})) 5... exd5 6. c3 (6. dxc5 Bxc5
7. Nb3 (7. Bd3)) 6... Nc6 7. Bd3 (7. dxc5 Bxc5 8. Nb3 Bb6 9. Nfd4 Nf6 10. Bg5
O-O 11. Be2 h6 12. Bh4 g5 13. Bg3 Ne4 14. f3 Nxg3 15. hxg3 Qd6 16. g4 Re8 17.
Qc2 Qg3+ 18. Kf1 Qd6 19. Rd1 Bd7 20. Nxc6 bxc6 21. Nd4 Re7 22. Bd3 Rae8 23. Bf5
Bxd4 24. Bxd7 Re2 25. Qxe2 Rxe2 26. Kxe2 Bc5 27. Bf5 Kg7 28. Kd2 Qg3 29. Kc1
Qxg2 30. Rhf1 Be3+ 31. Kb1 c5 32. Rfe1 d4 33. Be4 a5 34. c4 Kf6 35. Rh1 Kg7 36.
Rhe1 Qh2 {Dvalishvili,P (2450)-Grachev,B (2668) Moscow 2010 0-1}) 7... cxd4 $1
(7... Nf6 8. dxc5 Bxc5 9. O-O O-O 10. Nb3 $14) (7... c4) 8. Nxd4 {65} (8. cxd4
{[%csl Rd2]}) 8... Nxd4 9. cxd4 {[%csl Rd2] La structure est quasiment
symétrique et l'avantage d'ouverture des Blancs est trés faible.} Nf6 10. O-O
Be7 11. h3 (11. Re1 O-O 12. Nf3 Bg4 13. h3 Bh5 $11) 11... O-O 12. Re1 {62} Bd7
$146 (12... Bb4 13. a3 Ba5 14. b4 Bb6 15. Nf3 Ne4 16. Bxe4 dxe4 17. Rxe4 Be6
18. Bg5 Qd7 19. Qe2 Bd5 20. Re3 Rae8 21. Be7 Bxf3 22. gxf3 Qxd4 23. Rd1 Qxe3
24. fxe3 Rxe7 25. Rd3 Rfe8 26. Kg2 Bxe3 27. f4 Bb6 28. Qg4 Re2+ 29. Kf3 g6 30.
Qd7 R2e7 31. Qa4 Re1 32. Qd7 Rd8 33. Qxd8+ Bxd8 34. Rxd8+ Kg7 35. Rd7 b5 36.
Ra7 Re6 37. Kf2 Kf6 38. Kf3 h5 39. h4 Rc6 40. Ke4 Ke6 41. Ra8 Rc4+ 42. Kd3 {
Siklosi,Z (2365)-Eingorn,V (2610) Austria 1998 0-1}) 13. Nf3 {61} Re8 14. Ne5
Qb6 $1 $11 15. Bg5 {[%csl Rd7]} Be6 16. b3 $6 {[%csl Ra3,Rb2,Rc3] un sérieux
affaiblissement des cases noires} Rac8 (16... a5 $5 {[%cal Ga5a4]}) 17. Rc1
Rxc1 (17... Ba3 $5 {[%csl Ga3] Profitant de l'affaiblissement b3} 18. Rxc8 Rxc8
19. Bxf6 gxf6 20. Ng4 Kg7 {[%csl Ga3]} 21. Qf3 Qxd4 22. Qg3 Bxg4 23. Bf5 $1 Bd6
$1 24. Qxg4+ (24. Qxd6 Bxf5) 24... Qxg4 25. hxg4 Rc7) 18. Bxc1 Rc8 19. Bg5 h6
20. Bh4 Qc7 21. Qe2 Bb4 22. Rd1 Be7 23. Ng6 Bd8 24. Bg3 Qb6 25. Nf4 Be7 26. Kh2
$6 {Une perte de temps et le Kh2 n'est pas trés bien placé} Bd6 27. Bb1 Rc3
28. Kg1 {Reconnaissant que 26. Kh2 n'était pas très heureux} (28. Nxe6 Bxg3+
{[%csl Rh2]}) 28... Bd7 29. Qe1 Rc8 30. Qe3 {Les deux camps ont du mal à
progresser et la partie semble s'acheminer vers la nulle} Qc7 31. Qf3 Re8 32.
Nxd5 $2 {Après ce coup, les Noirs prennent l'avantage} (32. Ne2 Bxg3 33. Nxg3
{[%cal Gg3f5]}) 32... Nxd5 33. Qxd5 Bxg3 34. fxg3 Bc6 35. Qf5 Qxg3 $15 {
[%csl Gc6,Rd4,Rg2] La partie commence à mal tourner pour le GMI qui doit
probablement déjà envisager de proposer la nulle} 36. Qf2 Qxf2+ 37. Kxf2 Rd8
38. Bd3 Kf8 39. Bc4 Bd5 40. Bxd5 Rxd5 41. Ke3 Ke7 42. Rc1 Kd7 43. Rf1 1/2-1/2

[Event "Belgrade RAD 30"]
[Site "Belgrade"]
[Date "1977.01.26"]
[Round "9.7"]
[White "Weinstein, Norman"]
[Black "Andersson, Ulf"]
[Result "1/2-1/2"]
[ECO "C07"]
[WhiteElo "2475"]
[BlackElo "2565"]
[Annotator "Primel,D"]
[PlyCount "59"]
[EventDate "1977.01.15"]
[EventType "tourn"]
[EventRounds "13"]
[EventCountry "SRB"]
[EventCategory "9"]
[SourceTitle "EXT 2018"]
[Source "ChessBase"]
[SourceDate "2017.10.13"]
[SourceVersion "1"]
[SourceVersionDate "2017.10.13"]
[SourceQuality "1"]
[TimeControl "40/9000:16/5400:0"]

1. e4 e6 2. d4 d5 3. Nd2 c5 4. exd5 Qxd5 5. Ngf3 (5. dxc5) 5... Nf6 6. Bc4 Qd8
(6... Qd6 $5) 7. O-O cxd4 8. Nb3 Nc6 9. Nbxd4 (9. Qe2 $5 {[%cal Gf1d1]} Qb6 10.
Rd1 (10. Bg5)) 9... Nxd4 10. Nxd4 a6 11. b3 $5 {Une variante tranquille mais
un peu trop lente et l'alternative Bf4 pose davantage de problèmes aux Noirs
pour égaliser} (11. c3 Qc7 12. Qe2 Be7 13. Bg5 O-O 14. Rfe1 Re8 15. Bb3 Nd5
16. Bxe7 Nxe7 17. Rad1 Ng6 18. Nf5 Bd7 19. Nd6 Re7 20. Qe3 {1/2-1/2 (20) Ivkov,
B-Bronstein,D Leningrad 1957}) (11. Bf4 $142 $1 $32 {[%csl Re8]} Be7 (11... Bd6
) 12. c3 O-O 13. Qf3 Qb6 14. Bb3 Bd7 15. Rad1 {Rublevsky,S (2565)-Thomsen,T 
(2195) Moscow ol (Men) 1994 (1.4) 1-0}) 11... Be7 12. Bb2 O-O 13. Qe2 $146 (13.
Qf3 Qc7 14. Bd3 Rd8 15. Qh3 Rxd4 16. Bxd4 e5 17. Qg3 Bd6 18. Bb2 e4 19. f4 Qc5+
20. Kh1 Nh5 21. Qh4 Be7 22. Qe1 exd3 23. cxd3 Qd6 24. Be5 Qd8 25. f5 Nf6 26.
Rc1 Bd7 27. d4 Bc6 28. Qh4 Nd5 29. Qf2 f6 30. Bg3 Bb4 31. Qf3 Qd7 32. Be1 Ba3
33. Rd1 Re8 34. Bd2 Ne3 35. d5 Nxd1 36. dxc6 Qxd2 37. cxb7 Ne3 38. Qc6 Qxg2+
39. Qxg2 Nxg2 40. Kxg2 Rb8 41. Rf4 Rxb7 42. Ra4 Be7 {Timoscenko,G-Steinberg,M
Soviet Union 1966 0-1}) 13... Qc7 14. Rfe1 (14. Rfd1 e5) 14... b5 $1 15. Bd3
Re8 $1 {[%cal Ge8e6,Ge7f8]} 16. Nf3 Bb7 $132 17. Ne5 Bb4 18. Red1 Nd5 19. c4
bxc4 20. bxc4 Nf6 21. Rac1 (21. Rab1 {Aurait économisé un tempo par rapport
à 25.Rb1 joué dans la partie}) 21... Bc5 22. Bc2 Red8 23. h3 Rac8 24. Bc3 Ba8
25. Rb1 h6 26. Ng4 Nxg4 27. Qxg4 Bf8 $11 28. Bd3 Qc6 29. Bf1 Qa4 30. Qe2
1/2-1/2

[Event "Sautron op 16th"]
[Site "Sautron"]
[Date "2016.10.22"]
[Round "5.1"]
[White "Stany, George Anthony"]
[Black "Istratescu, Andrei"]
[Result "1/2-1/2"]
[ECO "C07"]
[WhiteElo "2471"]
[BlackElo "2600"]
[Annotator "RR"]
[PlyCount "76"]
[EventDate "2016.10.22"]
[EventType "swiss"]
[EventRounds "9"]
[EventCountry "FRA"]
[SourceTitle "EXT 2019"]
[Source "ChessBase"]
[SourceDate "2018.10.10"]
[SourceVersion "1"]
[SourceVersionDate "2018.10.10"]
[SourceQuality "1"]
[TimeControl "40/5400+30:1800+30"]
[WhiteClock "0:04:06"]
[BlackClock "0:03:30"]

1. e4 {[%emt 0:00:00]} e6 {[%emt 0:05:24]} 2. d4 {[%emt 0:00:00]} d5 {[%emt 0:
00:03]} 3. Nd2 {[%emt 0:00:36]} c5 {[%emt 0:00:27]} 4. exd5 {[%emt 0:00:48]}
Qxd5 {[%emt 0:00:22]} 5. Ngf3 {[%emt 0:00:21]} cxd4 {[%emt 0:00:15]} 6. Bc4 {
[%emt 0:00:15]} Qd7 $5 {[%emt 0:00:39] Une idée récente} (6... Qd6 {La
grande ligne} 7. O-O Nf6 8. Nb3 Nc6 9. Nbxd4 Nxd4 10. Nxd4 a6 (10... Bd7) 11.
Re1 Qc7 12. Qe2 h6 13. g3 b5 14. Bb3 Bd6 15. a4 O-O 16. axb5 e5 17. Nc6 Bb7 18.
c4 axb5 19. Rxa8 Qxc6 20. Rxf8+ Bxf8 21. f3 e4 22. cxb5 Qc5+ 23. Qf2 Qb4 24.
Bc2 exf3 25. h3 Qxb5 26. Be3 Qh5 27. Qf1 Ng4 28. Qd3 g6 29. Bb3 Nxe3 30. Rxe3
Qg5 31. Kh2 f2 32. Re8 Qf6 33. Bc4 Qc6 {0-1 (33) Karjakin,S (2762)-Kovalenko,I
(2700) Berlin 2015}) (6... Qd8 {L'alternative pour ne pas gêner le Bc8 mais
qui parait trop lente} 7. O-O $32) 7. O-O {[%emt 0:00:49]} Nc6 {[%emt 0:00:49]}
8. Nb3 {[%emt 0:00:42][%cal Gb3d4,Gf3d4]} Nf6 {[%emt 0:02:44]} (8... e5 $6 9.
Nxe5 Nxe5 10. Re1 Bd6 11. f4 $40 {[%csl Re8]}) 9. Nbxd4 {[%emt 0:00:40]} Nxd4 {
[%emt 0:00:43]} 10. Nxd4 {[%emt 0:00:10][%cal Gc4b5]} a6 $8 {[%emt 0:00:04]}
11. Re1 {[%emt 0:03:24]} (11. Bg5) 11... Bc5 {[%emt 0:06:07] L'idée de la
variante Qd7 et le Bf8 n'est plus gêné par la Qd6} (11... Qc7 {[%cal Gc7c4,
Gc8d7] Probablement une simple transposition} 12. Qe2 Bd6 $5 {[%cal Gd6h2]} (
12... Bc5) 13. Bg5 O-O 14. Bxf6 gxf6 15. Bd3 $14 f5 {Sjugirov,S (2673)-Goganov,
A (2632) Moscow Aeroflot op-A 16th 2017 (7) 1/2}) 12. Be3 {[%emt 0:13:45]
Joué après une longue réflexion mais la position reste théorique} (12. c3)
12... Qc7 {[%emt 0:03:28][%cal Gc7c4]} 13. Bb3 {[%emt 0:00:52]} O-O {[%emt 0:
06:51]} 14. Bg5 {[%emt 0:26:50] Une position critique} (14. c3 e5 {[%cal Gc8g4]
} 15. Nc2 Bg4 $132 {Geske,J (2399)-Berelowitsch,A (2543) Erfurt op 24th 2014 
(8) 1/2}) (14. Qf3 $5 {[%cal Ga1d1] Une alternative intéressante mais jouée
dans un blitz} e5 15. Nf5 e4 16. Qg3 Qxg3 17. Nxg3 Bd6 18. Bd4 $36 {[%csl Re4]
[%cal Gd4f6,Gg3e4];Mamedov,R (2688)-Cuenca Jimenez,J (2492) EU-ch blitz
Tallinn 2016 (5) 1-0}) 14... e5 {[%emt 0:13:35]} 15. Nf3 {[%emt 0:00:59]} Bg4
$146 {[%emt 0:01:29]} (15... Ng4 16. Bh4 Qb6 17. Qd2 Be6 18. Nxe5 Rad8 19. Nd3
Bxb3 20. axb3 Qd6 21. Qf4 Qxf4 22. Nxf4 g5 23. h3 Nxf2 24. Bxf2 Bxf2+ 25. Kxf2
gxf4 26. Ra4 Rd2+ 27. Re2 Rxe2+ 28. Kxe2 Re8+ 29. Kf3 Re3+ 30. Kf2 Re5 31. Rxf4
f5 32. Rc4 Re7 33. Rc5 Rf7 34. Kf3 Kg7 35. Kf4 Kg6 36. h4 Re7 37. Rxf5 Re2 38.
Rc5 Rxg2 39. b4 Re2 40. Rc7 b5 41. b3 Re6 42. c3 Kh6 43. c4 bxc4 44. bxc4 Rb6
45. b5 {Lambrechts,K (2255)-Geurink,J (2293) Groningen 2011 1-0}) 16. Bxf6 {
[%emt 0:07:43]} gxf6 {[%emt 0:00:10]} 17. Qd3 {[%emt 0:02:38]} Qb6 {[%emt 0:09:
23][%csl Rf2]} 18. Re2 {[%emt 0:02:05]} Rad8 $36 {[%emt 0:01:38]} 19. Qe4 {
[%emt 0:00:38]} Bh5 {[%emt 0:00:43]} 20. Qh4 {[%emt 0:06:13][%cal Gh4f6,Gh5g6]}
Bg6 {[%emt 0:03:22]} 21. Rae1 {[%emt 0:16:45][%csl Re1,Re2] Les R Blanches
sont assez passives} e4 $5 {[%emt 0:07:58]} 22. Nd2 {[%emt 0:03:02]} f5 {
[%emt 0:00:37] Les Noirs ont gagné de l'espace mais au détriment de
l'activité du Bg6} 23. Nc4 {[%emt 0:00:24]} Qc7 {[%emt 0:01:20][%cal Gf5f4,
Gf4f3]} 24. Qg5 {[%emt 0:03:13][%cal Gg5g8,Gh2h4,Gh4h5]} Rfe8 {[%emt 0:05:04]}
25. Ne3 {[%emt 0:02:06]} (25. h4 {[%cal Gh4h5]} Be7 $1 26. Qh6 Bf8 $36 {
[%csl Rh6]}) 25... Qe5 {[%emt 0:01:51]} 26. Nc4 {[%emt 0:03:25]} Qe7 {[%emt 0:
03:17]} 27. Qf4 {[%emt 0:03:03]} Kg7 {[%emt 0:03:13]} 28. Rd2 {[%emt 0:00:26]}
b5 {[%emt 0:02:26]} 29. Rxd8 {[%emt 0:00:13]} Rxd8 {[%emt 0:00:23]} 30. Ne3 {
[%emt 0:00:09]} Qf6 {[%emt 0:00:34]} 31. Nd5 {[%emt 0:00:09]} Qxb2 {[%emt 0:01:
29]} 32. h4 {[%emt 0:00:06]} (32. c3 $1 {[%csl Rb2][%cal Gf4e5] Coupant
l'échiquier en deux} Re8 33. Nc7 Re7 34. Ne6+ $5 fxe6 35. Qe5+ {[%cal Ge5c5,
Ge5g7]}) 32... h5 {[%emt 0:06:22]} 33. Rd1 {[%emt 0:00:10]} a5 {[%emt 0:07:37]}
34. c3 {[%emt 0:00:38]} Re8 {[%emt 0:03:51]} 35. Nc7 {[%emt 0:00:53]} Re7 {
[%emt 0:00:06]} 36. Nd5 {[%emt 0:00:34]} (36. Ne6+ fxe6 37. Qe5+) 36... Re8 {
[%emt 0:00:56]} 37. Nc7 {[%emt 0:00:05]} Re7 {[%emt 0:00:07]} 38. Nd5 {[%emt 0:
00:05]} Re8 {[%emt 0:00:03]} 1/2-1/2